[Event "Indian Blitz Championship 2023"]
[Site "Nashik"]
[Date "2024.03.07"]
[Round "9.5"]
[White "Hari Madhavan N B"]
[Black "Laxman, R.R."]
[Result "0-1"]
[ECO "A07"]
[WhiteElo "2395"]
[BlackElo "2331"]
[Annotator "TA"]
[PlyCount "96"]
[EventDate "2024.03.07"]
[EventType "blitz"]
[EventCountry "IND"]
[SourceTitle "playchess.com"]
[Source "ChessBase"]
[SourceQuality "1"]
[TimeControl "180+2"]

{[%evp 19,96,24,13,7,21,0,0,-18,-12,-14,-15,-35,-34,-44,-34,-51,0,-44,-36,-33,-38,-90,-43,-77,-52,-29,-34,-46,-47,-37,-41,-60,-54,-66,-18,-17,0,0,0,0,0,-62,-15,-15,-3,-5,0,-8,-8,-8,-26,-33,-76,-53,-12,-210,-226,-215,-204,-218,-204,-229,-180,-222,-227,-238,-210,-204,-115,-321,-300,-272,-170,-5310,-5206,-6342,-6308,-5269,-5250]} 1. Nf3 {[%emt 0:00:03]} Nf6 {[%emt 0:00:01]} 2. g3 {[%emt 0:00:01]} d5 {[%emt 0:00:03]} 3. Bg2 {[%emt 0:00:03]} c6 {[%emt 0:00:02]} 4. O-O {[%emt 0:00:03]} Bg4 {[%emt 0:00:02]} 5. d3 {[%emt 0:00:02]} Nbd7 {[%emt 0:00:01]} 6. Nbd2 {[%emt 0:00:02]} e5 {[%emt 0:00:02]} 7. h3 {[%emt 0:00:05]} Bh5 {[%emt 0:00:02]} 8. e4 {[%emt 0:00:08]} dxe4 {[%emt 0:00:02]} 9. dxe4 {[%emt 0:00:02]} Bc5 {[%emt 0:00:02]} 10. Qe1 {[%emt 0:00:08]} O-O {[%emt 0:00:04]} 11. Nh4 {[%emt 0:00:18]} Re8 {[%emt 0:00:03]} 12. Nf5 {[%emt 0:00:09]} Bg6 {[%emt 0:00:08]} 13. Qe2 {[%emt 0:00:05] The position is equal.} Qc7 {[%emt 0:00:03]} 14. Nb3 {[%emt 0:00:17]} Bb6 {[%emt 0:00:11]} 15. Be3 {[%emt 0:00:02]} Bxf5 {[%emt 0:00:02]} 16. exf5 {[%emt 0:00:01]} Bxe3 {[%emt 0:00:04]} 17. Qxe3 {[%emt 0:00:02]} a5 {[%emt 0:00:10]} (17... Nd5 $15 18. Qe2 e4) 18. Rad1 {[%emt 0:00:03]} (18. Rfe1 $5 {[%cal Rb3d2]}) 18... e4 {[%emt 0:00:11]} 19. c4 {[%emt 0:00:20]} Qe5 {[%emt 0:00:09]} 20. Nd4 {[%emt 0:00:46]} (20. g4 $15 h6 (20... Qxb2 21. g5 $16) 21. Rd4) 20... Nc5 {[%emt 0:00:03]} (20... h5 $17 21. Rd2 Qc5) 21. f4 {[%emt 0:00:15]} exf3 {[%emt 0:00:08]} 22. Qxe5 {[%emt 0:00:01]} Rxe5 {[%emt 0:00:01]} 23. Bxf3 {[%emt 0:00:01]} Rae8 {[%emt 0:00:05]} 24. g4 {[%emt 0:00:06]} h6 {[%emt 0:00:02]} 25. Rf2 {[%emt 0:00:10]} Re3 {[%emt 0:00:09] Threatens to win with ...Nd3.} 26. Re2 {[%emt 0:00:07]} Rxe2 {[%emt 0:00:10]} (26... Nd3 $15 27. Rxe3 Rxe3) 27. Nxe2 $11 {[%emt 0:00:03]} Re3 {[%emt 0:00:18]} 28. Kf2 {[%emt 0:00:04]} Rd3 {[%emt 0:00:02]} 29. Nf4 {[%emt 0:00:08]} Nfe4+ {[%emt 0:00:11] A dynamic duo of knights.} 30. Kg2 {[%emt 0:00:01]} ({White should play} 30. Ke2 $11 Rxd1 31. Kxd1) 30... Rxd1 {[%emt 0:00:05]} (30... Rd2+ $15 31. Rxd2 Nxd2) 31. Bxd1 $15 {[%emt 0:00:01][%mdl 4096] Endgame. KBN-KNN} Kf8 {[%emt 0:00:07]} 32. Bc2 {[%emt 0:00:04]} Ke7 {[%emt 0:00:06]} 33. b3 {[%emt 0:00:14]} Nc3 {[%emt 0:00:02]} 34. a3 {[%emt 0:00:01]} a4 {[%emt 0:00:05]} 35. b4 {[%emt 0:00:03]} Nb3 {[%emt 0:00:02] aiming for ...Nd2.} 36. Kf2 {[%emt 0:00:05]} b5 {[%emt 0:00:11]} 37. cxb5 {[%emt 0:00:02]} (37. c5 $1 $11) 37... Nxb5 $19 {[%emt 0:00:03]} 38. Be4 {[%emt 0:00:07]} Kd6 {[%emt 0:00:07]} ({And not} 38... Nxa3 39. Bxc6 Nd4 40. Bxa4 $16) 39. Nd3 {[%emt 0:00:01]} Nd2 {[%emt 0:00:07]} 40. Bf3 {[%emt 0:00:04]} Nxa3 {[%emt 0:00:08] [#] Hoping for ...Nc2.} 41. Nc5 {[%emt 0:00:02]} Nxf3 {[%emt 0:00:02]} 42. Kxf3 {[%emt 0:00:00] KN-KN} Nc2 {[%emt 0:00:02] And now ...a3 would win.} 43. Nxa4 {[%emt 0:00:01] [#]} Nxb4 {[%emt 0:00:01]} ({Black should try} 43... Ke5 $1 $19 {[%cal Oe5d4] ...Kd4! would now be deadly.} 44. Nc5 Nxb4) 44. h4 $2 {[%emt 0:00:02]} (44. Ke4 $17 {was the only defense.}) 44... Ke5 {[%emt 0:00:05]} 45. Nc5 {[%emt 0:00:02]} Nd5 {[%emt 0:00:03][%cal Oh6h5]} 46. Nd7+ $2 {[%emt 0:00:03]} (46. Nb7) 46... Kd6 {[%emt 0:00:01] Black is clearly winning.} 47. Nf8 {[%emt 0:00:02]} Ke7 {[%emt 0:00:02]} 48. Nh7 {[%emt 0:00:01]} Nf6 {[%emt 0:00:01] Weighted Error Value: White=0.53/Black=0.14 (very precise) .  Loses game:     	White=2     	---        Mistake:       	White=3     	Black=5      Inaccurate:     	White=2     	Black=2      OK:         	White=10    	Black=15     Best:        	White=2     	Black=2} 0-1

[Event "Indian Blitz Championship 2023"]
[Site "Nashik"]
[Date "2024.03.07"]
[Round "9.6"]
[White "Dixit, Nikhil"]
[Black "Karthik Venkataraman"]
[Result "1-0"]
[ECO "B56"]
[WhiteElo "2334"]
[BlackElo "2609"]
[Annotator "TA"]
[PlyCount "87"]
[EventDate "2024.03.07"]
[EventType "blitz"]
[EventCountry "IND"]
[SourceTitle "playchess.com"]
[Source "ChessBase"]
[SourceQuality "1"]
[TimeControl "180+2"]

{[%evp 11,87,5,11,0,0,0,16,-9,16,0,56,39,72,56,68,72,99,-2,33,0,0,-60,-60,-106,60,38,141,153,227,222,229,245,308,307,302,305,327,333,243,233,494,501,534,549,545,544,545,525,486,325,440,431,487,459,443,459,452,450,510,510,543,541,529,503,521,529,633,628,922,904,894,888,1196,1164,1168,1171,1085,945]} 1. e4 {[%emt 0:00:02]} c5 {[%emt 0:00:01]} 2. Nf3 {[%emt 0:00:02]} Nc6 {[%emt 0:00:01]} 3. d4 {[%emt 0:00:06]} cxd4 {[%emt 0:00:01]} 4. Nxd4 {[%emt 0:00:02]} Nf6 {[%emt 0:00:02]} 5. Nc3 {[%emt 0:00:01]} d6 {[%emt 0:00:01]} 6. h3 {[%emt 0:00:11]} e5 {[%emt 0:00:02]} 7. Nb3 {[%emt 0:00:05]} Be7 {[%emt 0:00:02]} 8. Be3 {[%emt 0:00:05]} Be6 {[%emt 0:00:06]} 9. Qd2 {[%emt 0:00:06] The position is equal.} a6 {[%emt 0:00:08]} 10. O-O-O {[%emt 0:00:12]} Na5 {[%emt 0:00:04]} ({Black should try} 10... a5 $11) 11. g4 $14 {[%emt 0:00:12]} h6 {[%emt 0:00:07]} 12. Kb1 {[%emt 0:00:09]} Rc8 {[%emt 0:00:05]} 13. f3 {[%emt 0:00:06]} Nc4 {[%emt 0:00:07]} 14. Qe1 {[%emt 0:00:09]} (14. Bxc4 $16 Bxc4 15. h4) 14... b5 {[%emt 0:00:05]} 15. Bc1 {[%emt 0:00:17]} Qc7 {[%emt 0:00:02][%cal Oc4a3]} 16. Bd3 {[%emt 0:00:07]} (16. Nd5 $11 Nxd5 17. exd5) 16... b4 $15 {[%emt 0:00:05]} 17. Nd5 {[%emt 0:00:05]} (17. Ne2 $15 {should be considered.}) 17... Bxd5 $2 {[%emt 0:00:06]} ({Better is} 17... Nxd5 $17 18. exd5 Bxd5) 18. exd5 $14 {[%emt 0:00:03]} Nxd5 {[%emt 0:00:10] Black is now going downhill.} (18... a5 $1 $14) 19. Bf5 $16 {[%emt 0:00:01][%csl LRc8,LRd5]} Ncb6 {[%emt 0:00:35]} (19... Ndb6 $16 {keeps fighting.}) 20. Bxc8 $18 {[%emt 0:00:03]} Qxc8 {[%emt 0:00:00]} 21. Qe4 {[%emt 0:00:05]} Qc6 {[%emt 0:00:01]} 22. Rd3 {[%emt 0:00:09][%cal Bd1d3,Bd3d5,Bd5b5,Bb5b7][%mdl 32]} Qb5 {[%emt 0:00:10]} ({Reject} 22... O-O 23. Rhd1 $18) 23. Rhd1 {[%emt 0:00:09]} Nf6 {[%emt 0:00:01][%cal Bd5f6,Bf6d7,Bd7b6,Bb6c8][%mdl 32]} 24. Qb7 {[%emt 0:00:08]} Nfd7 {[%emt 0:00:01] Repels Qb8+} 25. Be3 {[%emt 0:00:05]} Nc4 $2 {[%emt 0:00:14]} (25... O-O 26. Bxb6 Rb8) 26. Qc8+ {[%emt 0:00:14]} Bd8 {[%emt 0:00:01]} 27. Rd5 {[%emt 0:00:14]} Ncb6 {[%emt 0:00:57]} 28. Bxb6 {[%emt 0:00:12]} Nxb6 {[%emt 0:00:00]} 29. Rxb5 {[%emt 0:00:08]} Nxc8 {[%emt 0:00:01]} 30. Rb7 {[%emt 0:00:06]} O-O {[%emt 0:00:14]} 31. Rxb4 {[%emt 0:00:01] White is clearly winning.} f5 {[%emt 0:00:16]} 32. Rb8 {[%emt 0:00:04]} Bc7 {[%emt 0:00:00]} 33. Ra8 {[%emt 0:00:02]} fxg4 {[%emt 0:00:02]} 34. hxg4 {[%emt 0:00:02]} Kf7 {[%emt 0:00:03]} 35. c4 {[%emt 0:00:07]} Ke7 {[%emt 0:00:09]} 36. c5 {[%emt 0:00:01]} Kd7 {[%emt 0:00:05]} 37. cxd6 {[%emt 0:00:02]} Bxd6 {[%emt 0:00:01]} 38. Nc5+ {[%emt 0:00:02]} Ke7 {[%emt 0:00:00]} 39. Ne4 {[%emt 0:00:03] [#] aiming for Nxd6.} Bc7 {[%emt 0:00:01]} 40. Rc1 {[%emt 0:00:02]} Kd7 {[%emt 0:00:01]} 41. Nc5+ {[%emt 0:00:01]} Kc6 {[%emt 0:00:01]} 42. Nxa6+ {[%emt 0:00:03]} Kb7 {[%emt 0:00:01]} 43. Nxc7 {[%emt 0:00:01] [#] Threatens to win with Ra3.} Rxf3 {[%emt 0:00:01]} 44. Ra3 {[%emt 0:00:02] Weighted Error Value: White=0.17 (very precise) /Black=0.42.  Mistake:       	White=3     	Black=5      Inaccurate:     	White=2     	Black=5      OK:         	White=17    	Black=6      Best:        	White=3     	Black=1} 1-0

[Event "Indian Blitz Championship 2023"]
[Site "Nashik"]
[Date "2024.03.07"]
[Round "9.7"]
[White "Arhan Chethan Anand"]
[Black "Sengupta, Deep"]
[Result "1-0"]
[ECO "C18"]
[WhiteElo "2366"]
[BlackElo "2500"]
[Annotator "RC"]
[PlyCount "71"]
[EventDate "2024.03.07"]
[EventType "blitz"]
[EventCountry "IND"]
[SourceTitle "playchess.com"]
[Source "ChessBase"]
[SourceQuality "1"]
[TimeControl "180+2"]

1. e4 {[%emt 0:00:02]} e6 {[%emt 0:00:01]} 2. d4 {[%emt 0:00:01]} d5 {[%emt 0:00:01]} 3. Nc3 {[%emt 0:00:01]} Bb4 {[%emt 0:00:01]} 4. e5 {[%emt 0:00:02]} c5 {[%emt 0:00:01]} 5. a3 {[%emt 0:00:00]} Bxc3+ {[%emt 0:00:02]} 6. bxc3 {[%emt 0:00:02]} Nc6 {[%emt 0:00:08]} 7. Qg4 {[%emt 0:00:01]} g6 {[%emt 0:00:01]} 8. Nf3 {[%emt 0:00:07]} Qa5 {[%emt 0:00:09]} 9. Bd2 {[%emt 0:00:01]} Bd7 {[%emt 0:00:01]} 10. Qh4 {[%emt 0:00:41]} h6 {[%emt 0:00:07]} 11. c4 {[%emt 0:00:06]} Qc7 {[%emt 0:00:10]} 12. cxd5 {[%emt 0:00:13]} exd5 {[%emt 0:00:08]} 13. c3 {[%emt 0:00:04]} Be6 {[%emt 0:00:11]} 14. Be2 {[%emt 0:00:36]} Nge7 {[%emt 0:00:47]} 15. O-O {[%emt 0:00:44]} O-O-O {[%emt 0:00:05]} 16. dxc5 {[%emt 0:00:01]} d4 {[%emt 0:00:21]} 17. cxd4 {[%emt 0:00:18]} Nf5 {[%emt 0:00:01]} 18. Qe4 {[%emt 0:00:06]} Nfxd4 {[%emt 0:00:06]} 19. Nxd4 {[%emt 0:00:04]} Rxd4 {[%emt 0:00:11]} 20. Qe3 {[%emt 0:00:01]} Rhd8 {[%emt 0:00:35]} 21. Bc3 {[%emt 0:00:01]} R4d5 {[%emt 0:00:01]} 22. Bc4 {[%emt 0:00:08]} R5d7 {[%emt 0:00:08]} 23. Bxe6 {[%emt 0:00:02]} fxe6 {[%emt 0:00:01]} 24. Qxh6 {[%emt 0:00:05]} Rd3 {[%emt 0:00:02]} 25. Rac1 {[%emt 0:00:04]} Qf7 {[%emt 0:00:05]} 26. Qg5 {[%emt 0:00:05]} R8d5 {[%emt 0:00:17]} 27. h4 {[%emt 0:00:03]} Rxc5 {[%emt 0:00:03]} 28. Bb4 {[%emt 0:00:06]} Rxc1 {[%emt 0:00:02]} 29. Rxc1 {[%emt 0:00:01]} Rd5 {[%emt 0:00:05]} 30. Bd6 {[%emt 0:00:01]} Kd7 {[%emt 0:00:03]} 31. Qe3 {[%emt 0:00:02]} Qf5 {[%emt 0:00:01]} 32. Rxc6 {[%emt 0:00:10]} Kxc6 {[%emt 0:00:03]} 33. Qc3+ {[%emt 0:00:01]} Kb6 {[%emt 0:00:02]} 34. Bc7+ {[%emt 0:00:03]} Ka6 {[%emt 0:00:03]} 35. Qc4+ {[%emt 0:00:01]} Rb5 {[%emt 0:00:04]} 36. Qa4+ {[%emt 0:00:01]} 1-0

[Event "Indian Blitz Championship 2023"]
[Site "Nashik"]
[Date "2024.03.07"]
[Round "9.8"]
[White "Nitin, S.."]
[Black "Jinan Jomon"]
[Result "0-1"]
[ECO "A09"]
[WhiteElo "2338"]
[BlackElo "2380"]
[Annotator "RC"]
[PlyCount "156"]
[EventDate "2024.03.07"]
[EventType "blitz"]
[EventCountry "IND"]
[SourceTitle "playchess.com"]
[Source "ChessBase"]
[SourceQuality "1"]
[TimeControl "180+2"]

1. Nf3 {[%emt 0:00:02]} d5 {[%emt 0:00:01]} 2. g3 {[%emt 0:00:01]} e6 {[%emt 0:00:04]} 3. Bg2 {[%emt 0:00:01]} c5 {[%emt 0:00:02]} 4. O-O {[%emt 0:00:03]} Nc6 {[%emt 0:00:12]} 5. c4 {[%emt 0:00:03]} d4 {[%emt 0:00:13]} 6. e3 {[%emt 0:00:01]} Bd6 {[%emt 0:00:07]} 7. exd4 {[%emt 0:00:05]} cxd4 {[%emt 0:00:02]} 8. d3 {[%emt 0:00:02]} e5 {[%emt 0:00:10]} 9. Re1 {[%emt 0:00:21]} Nge7 {[%emt 0:00:04]} 10. Nbd2 {[%emt 0:00:09]} O-O {[%emt 0:00:07]} 11. Ne4 {[%emt 0:00:05]} Bc7 {[%emt 0:00:09]} 12. a3 {[%emt 0:00:03]} a5 {[%emt 0:00:08]} 13. Rb1 {[%emt 0:00:04]} f5 {[%emt 0:00:12]} 14. Ned2 {[%emt 0:00:09]} a4 {[%emt 0:00:10]} 15. b4 {[%emt 0:00:03]} axb3 {[%emt 0:00:02]} 16. Nxb3 {[%emt 0:00:02]} Kh8 {[%emt 0:00:09]} 17. Nh4 {[%emt 0:00:30]} Ng6 {[%emt 0:00:50]} 18. Nf3 {[%emt 0:00:07]} h6 {[%emt 0:00:06]} 19. Nfd2 {[%emt 0:00:11]} Qf6 {[%emt 0:00:03]} 20. Qf3 {[%emt 0:00:35]} Qe7 {[%emt 0:00:23]} 21. Qh5 {[%emt 0:00:04]} Qf6 {[%emt 0:00:04]} 22. Qf3 {[%emt 0:00:24]} Ra7 {[%emt 0:00:07]} 23. Bb2 {[%emt 0:00:11]} Qf7 {[%emt 0:00:06]} 24. h4 {[%emt 0:00:04]} e4 {[%emt 0:00:09]} 25. dxe4 {[%emt 0:00:02]} Nge5 {[%emt 0:00:01]} 26. Qd1 {[%emt 0:00:06]} fxe4 {[%emt 0:00:06]} 27. Nxe4 {[%emt 0:00:05]} Bg4 {[%emt 0:00:02]} 28. Qc1 {[%emt 0:00:07]} Bf3 {[%emt 0:00:03]} 29. Nbd2 {[%emt 0:00:01]} Bxg2 {[%emt 0:00:03]} 30. Kxg2 {[%emt 0:00:01]} Raa8 {[%emt 0:00:01]} 31. Qc2 {[%emt 0:00:06]} Rae8 {[%emt 0:00:02]} 32. c5 {[%emt 0:00:07]} Nf3 {[%emt 0:00:01]} 33. Rf1 {[%emt 0:00:04]} Nxd2 {[%emt 0:00:02]} 34. Nxd2 {[%emt 0:00:01]} Re2 {[%emt 0:00:03]} 35. Qc4 {[%emt 0:00:05]} Rxd2 {[%emt 0:00:03]} 36. Qxf7 {[%emt 0:00:03]} Rxf7 {[%emt 0:00:01]} 37. Bc1 {[%emt 0:00:00]} Rc2 {[%emt 0:00:02]} 38. Rxb7 {[%emt 0:00:01]} Ne5 {[%emt 0:00:01]} 39. Bf4 {[%emt 0:00:02]} Rxc5 {[%emt 0:00:02]} 40. Re1 {[%emt 0:00:03]} Nd3 {[%emt 0:00:02]} 41. Re8+ {[%emt 0:00:02]} Kh7 {[%emt 0:00:00]} 42. Bd6 {[%emt 0:00:02]} Rc6 {[%emt 0:00:03]} 43. Rc8 {[%emt 0:00:05]} Rxd6 {[%emt 0:00:05]} 44. Rcxc7 {[%emt 0:00:02]} Rxc7 {[%emt 0:00:01]} 45. Rxc7 {[%emt 0:00:00]} Ne5 {[%emt 0:00:01]} 46. f4 {[%emt 0:00:02]} Ng4 {[%emt 0:00:02]} 47. Kf3 {[%emt 0:00:01]} d3 {[%emt 0:00:02]} 48. Rc1 {[%emt 0:00:01]} Nf6 {[%emt 0:00:04]} 49. Ke3 {[%emt 0:00:01]} Kg6 {[%emt 0:00:02]} 50. Rd1 {[%emt 0:00:02]} Ra6 {[%emt 0:00:01]} 51. Rxd3 {[%emt 0:00:01]} Kf5 {[%emt 0:00:02]} 52. Kf3 {[%emt 0:00:01]} h5 {[%emt 0:00:01]} 53. Rb3 {[%emt 0:00:02]} Ra5 {[%emt 0:00:00]} 54. Re3 {[%emt 0:00:01]} Ng4 {[%emt 0:00:04]} 55. Rb3 {[%emt 0:00:02]} Rc5 {[%emt 0:00:01]} 56. a4 {[%emt 0:00:15]} Rc2 {[%emt 0:00:01]} 57. Rb5+ {[%emt 0:00:00]} Kg6 {[%emt 0:00:04]} 58. Rb6+ {[%emt 0:00:00]} Nf6 {[%emt 0:00:02]} 59. a5 {[%emt 0:00:00]} Ra2 {[%emt 0:00:01]} 60. a6 {[%emt 0:00:00]} Ra4 {[%emt 0:00:03]} 61. Ke3 {[%emt 0:00:00]} Kf5 {[%emt 0:00:01]} 62. Kf3 {[%emt 0:00:00]} Ra3+ {[%emt 0:00:01]} 63. Kf2 {[%emt 0:00:00]} Ne4+ {[%emt 0:00:01]} 64. Ke2 {[%emt 0:00:00]} Nxg3+ {[%emt 0:00:02]} 65. Kd2 {[%emt 0:00:00]} Kxf4 {[%emt 0:00:02]} 66. Rg6 {[%emt 0:00:00]} Nf5 {[%emt 0:00:01]} 67. Kc2 {[%emt 0:00:01]} Nxh4 {[%emt 0:00:03]} 68. Kb2 {[%emt 0:00:05]} Ra5 {[%emt 0:00:02]} 69. Rb6 {[%emt 0:00:02]} Nf5 {[%emt 0:00:02]} 70. Kb3 {[%emt 0:00:00]} Ra1 {[%emt 0:00:05]} 71. Kb2 {[%emt 0:00:02]} Ra5 {[%emt 0:00:09]} 72. Kb3 Nd4+ {[%emt 0:00:00]} 73. Kb4 {[%emt 0:00:01]} Ra1 {[%emt 0:00:00]} 74. Kc5 {[%emt 0:00:25]} Nf5 {[%emt 0:00:00]} 75. Rb4+ {[%emt 0:00:00]} Kg5 {[%emt 0:00:01]} 76. Kb5 {[%emt 0:00:00]} h4 {[%emt 0:00:02]} 77. Ra4 {[%emt 0:00:00]} Nd6+ {[%emt 0:00:00]} 78. Ka5 {[%emt 0:00:00]} Rxa4+ {[%emt 0:00:02]} 0-1

[Event "Indian Blitz Championship 2023"]
[Site "Nashik"]
[Date "2024.03.07"]
[Round "9.9"]
[White "Vignesh B"]
[Black "Aradhya, Garg"]
[Result "0-1"]
[ECO "C78"]
[WhiteElo "2209"]
[BlackElo "2385"]
[Annotator "TA"]
[PlyCount "112"]
[EventDate "2024.03.07"]
[EventType "blitz"]
[EventCountry "IND"]
[SourceTitle "playchess.com"]
[Source "ChessBase"]
[SourceQuality "1"]
[TimeControl "180+2"]

{[%evp 23,112,-2,0,-74,-62,-79,-73,-35,-19,-40,-29,-36,-36,-36,-21,-66,0,-64,-57,-63,-4,-54,-32,-41,-27,-58,-52,-68,-23,-25,-16,-31,7,-154,-164,-167,-181,-150,-119,-192,-194,-199,-150,-629,-628,-610,-622,-710,-693,-772,-774,-1334,-1070,-3079,-1067,-1051,-635,-1036,-886,-878,-856,-1619,-1229,-2116,-1989,-29974,-29971,-29986,-5685,-29961,-12441,-29971,-29972,-29990,-29969,-29989,-901,-901,-901,-901,-901,-901,-901,-901,-901,-901,-886,-853,-853,-839,-801]} 1. e4 {[%emt 0:00:01]} e5 {[%emt 0:00:00]} 2. Nf3 {[%emt 0:00:03]} Nc6 {[%emt 0:00:01]} 3. Bb5 {[%emt 0:00:04]} a6 {[%emt 0:00:01]} 4. Ba4 {[%emt 0:00:01]} Nf6 {[%emt 0:00:01]} 5. d3 {[%emt 0:00:03]} Bc5 {[%emt 0:00:05]} 6. O-O {[%emt 0:00:05]} b5 {[%emt 0:00:07]} 7. Bb3 {[%emt 0:00:01]} d6 {[%emt 0:00:01]} 8. c3 {[%emt 0:00:06]} O-O {[%emt 0:03:02]} 9. h3 {[%emt 0:00:05]} Ne7 {[%emt 0:00:02] C78: Ruy Lopez: Archangelsk and Möller Defences.} 10. d4 {[%emt 0:00:04]} Bb6 {[%emt 0:00:00]} 11. Re1 {[%emt 0:00:07]} Ng6 {[%emt 0:00:00]} 12. Nbd2 {[%emt 0:00:05]} Bb7 {[%emt 0:00:00]} 13. d5 {[%emt 0:00:22]} (13. a4 $11) 13... c6 $17 {[%emt 0:00:00]} 14. dxc6 {[%emt 0:00:14]} Bxc6 {[%emt 0:00:00]} 15. Bc2 {[%emt 0:00:04]} a5 $146 {[%emt 0:00:00]} ({Predecessor:} 15... d5 16. exd5 Qxd5 17. Bxg6 hxg6 18. Rxe5 Qd6 19. Re1 Rfe8 20. Nf1 Qxd1 21. Rxd1 Bxf3 22. gxf3 {½-½ Marakovits,N (1777)-Fanninger,L (1977) AUT-ch U16 Sankt Veit an der Glan 2019 (6)}) 16. Nf1 {[%emt 0:00:06]} b4 {[%emt 0:00:00]} 17. Ng3 {[%emt 0:00:12]} bxc3 {[%emt 0:00:00]} 18. bxc3 {[%emt 0:00:01]} Bc5 {[%emt 0:00:00]} 19. Be3 {[%emt 0:00:32]} Rb8 {[%emt 0:00:00]} (19... Bxe3 $15 20. Rxe3 Qc7) 20. Qc1 {[%emt 0:00:20]} (20. Bxc5 $11 dxc5 21. Rb1) 20... Bxe3 $15 {[%emt 0:00:00]} 21. Qxe3 {[%emt 0:00:47]} Qb6 {[%emt 0:00:00]} (21... Qc7 $15) 22. Qd2 {[%emt 0:00:15]} (22. Qxb6 $11 Rxb6 23. Red1) 22... Qc5 {[%emt 0:00:00]} 23. Rab1 {[%emt 0:00:02]} Bd7 {[%emt 0:00:00]} 24. Red1 {[%emt 0:00:03]} Rxb1 {[%emt 0:00:00]} 25. Bxb1 {[%emt 0:00:01]} Be6 {[%emt 0:00:00]} 26. Qxd6 {[%emt 0:00:04]} Qxc3 {[%emt 0:00:00]} 27. Nf5 {[%emt 0:00:02]} Qb4 {[%emt 0:00:03]} 28. Qa6 $2 {[%emt 0:00:03]} (28. Nxe5 $2 Qxd6 (28... Nxe4 $2 29. Nxg6 hxg6 30. Qxb4 $18) 29. Rxd6 Rb8 $19 (29... Nxe5 $2 30. Ne7+ Kh8 31. f4 $19)) ({White should play} 28. Qxb4 $11 axb4 29. Rd6) 28... Nxe4 $17 {[%emt 0:00:07]} 29. Bxe4 {[%emt 0:00:03]} Qxe4 {[%emt 0:00:03]} 30. Ne3 {[%emt 0:00:02]} Qa4 {[%emt 0:00:10]} (30... Bxa2 31. Qxa5 Qa8 32. Qe1 $17) 31. Rd2 {[%emt 0:00:02]} (31. Qd6 $17) 31... Bxa2 $19 {[%emt 0:00:07]} 32. Qd6 {[%emt 0:00:01]} Be6 {[%emt 0:00:01]} (32... Bb3 $19 33. h4 Rc8 (33... Nxh4 34. Nxh4 Qxh4 35. Nf5 $11)) 33. Nxe5 $2 {[%emt 0:00:03]} (33. h4 $17) 33... Qa1+ $19 {[%emt 0:00:02]} 34. Rd1 {[%emt 0:00:01]} Qxe5 {[%emt 0:00:01]} 35. Qa6 {[%emt 0:00:00]} Nf4 {[%emt 0:00:03]} 36. Qa7 {[%emt 0:00:04]} Bb3 {[%emt 0:00:05]} 37. Rd7 {[%emt 0:00:03]} a4 {[%emt 0:00:02]} 38. Re7 {[%emt 0:00:02]} Ne6 {[%emt 0:00:05]} 39. Rb7 {[%emt 0:00:02]} Qc5 {[%emt 0:00:01]} 40. Qa6 {[%emt 0:00:01]} Nd4 {[%emt 0:00:06]} 41. Rd7 {[%emt 0:00:04]} h5 {[%emt 0:00:02]} 42. Rb7 {[%emt 0:00:02]} h4 {[%emt 0:00:01]} 43. Rd7 {[%emt 0:00:01]} a3 {[%emt 0:00:03]} 44. Rb7 {[%emt 0:00:02]} a2 {[%emt 0:00:01]} 45. Kh2 {[%emt 0:00:03]} Qc3 {[%emt 0:00:03]} (45... Qe5+ $142 46. Kh1 Rc8 (46... Nf3 $2 47. gxf3 a1=Q+ 48. Qxa1 $19) 47. Qa3 Nb5 48. Rxb5 a1=Q+ (48... a1=R+ 49. Qxa1 Qxa1+ 50. Kh2 Rc1 51. g3 Rh1+ 52. Kg2 Rg1+ 53. Kf3 Bd1+ 54. Ke4 Qa4+ 55. Ke5 f6+ 56. Kd6 Qxb5 57. Nd5 Ba4 58. Nxf6+ gxf6 59. f4 Qc6+ 60. Ke7 Re1+ 61. Kd8 Re8#) 49. Qxa1 Qxa1+ 50. Kh2 Rc1 51. g3 Rh1+ 52. Kg2 Qa8+ 53. f3 Qa1 54. f4 Qa8+ (54... Qg1+ $2 55. Kf3 $19) 55. Rd5 Bxd5+ 56. Nxd5 Qxd5+ 57. Kf2 Qd2+ (57... Rxh3 58. f5 hxg3+ 59. Ke2 g2 60. Ke1 g1=Q+ 61. Ke2 Rh2#) 58. Kf3 f5 59. gxh4 Rxh3#) 46. Ra7 $19 {[%emt 0:00:02]} Nc2 {[%emt 0:00:02]} 47. Nxc2 {[%emt 0:00:01]} Qxc2 {[%emt 0:00:02]} 48. Qa3 {[%emt 0:00:02]} Qb1 {[%emt 0:00:01]} 49. f4 {[%emt 0:00:03] [#]} a1=B {[%emt 0:00:03]} (49... Qd3 $142 $1 50. Ra5 (50. Qa5 Qg3+) 50... Qg3+ 51. Kg1 Bd5 (51... Qxf4 {gets mated.} 52. Qxb3 Qc1+ 53. Kh2 Qc7+ 54. Kg1 Qxa5 55. Qd1 a1=Q 56. Qxa1 Qxa1+ 57. Kf2 Re8 58. Kf3 Qf1+ 59. Kg4 Re4+ 60. Kh5 Qf5#) 52. Rxd5 Qxa3 53. Rd1 Qe3+ (53... a1=B {leads to mate.} 54. Kh2 Qg3+ 55. Kh1 Re8 56. Rxa1 Re2 57. Ra8+ Kh7 58. Rh8+ Kxh8 59. Kg1 Qxg2#) (53... a1=Q {is a self mate.} 54. Rxa1 Qxa1+ 55. Kf2 Re8 56. Kf3 Qd1+ 57. Kf2 Qe1+ 58. Kf3 Qg3#) 54. Kh1 Rb8 (54... Qxf4 55. Kg1 Ra8 56. Ra1 Rb8 57. Re1 Rb1 58. g4 Rxe1+ 59. Kg2 Qg3#) 55. Kh2 Qxf4+ 56. Kg1 Rb1 (56... Qe3+ 57. Kh2 Qf4+ 58. Kg1 Rb1 59. g4 Rxd1+ 60. Kg2 Qg3#) 57. g4 Rxd1+ 58. Kg2 Qg3#) 50. Qxa1 $19 {[%emt 0:00:01]} Qxa1 {[%emt 0:00:01]} 51. Rxa1 {[%emt 0:00:02]} Be6 {[%emt 0:00:01]} 52. Ra5 {[%emt 0:00:01]} g6 {[%emt 0:00:01]} 53. Ra4 {[%emt 0:00:03]} Bf5 {[%emt 0:00:01]} 54. Rb4 {[%emt 0:00:01]} Re8 {[%emt 0:00:02]} 55. g4 {[%emt 0:00:04]} hxg3+ {[%emt 0:00:01]} 56. Kxg3 {[%emt 0:00:01]} Re3+ {[%emt 0:00:01]} 0-1